fUST/lending_fUST_20250216
["ID","MTS","AMOUNT","RATE_DAILY","PERIOD"]
[353235812,1739697042248,-500.0,8.778e-05,2]
[353235813,1739697042258,-1232.29,8.778e-05,2]
[353235814,1739697042267,-500.0,8.778e-05,2]
[353235815,1739697042277,-1062.8,8.778e-05,2]
[353235816,1739697042286,-500.0,8.778e-05,2]
[353235817,1739697042295,-500.0,8.778e-05,2]
[353235818,1739697042305,-500.0,8.778e-05,2]
[353235819,1739697042315,-500.0,8.778e-05,2]
[353235820,1739697042324,-503.87945351,8.778e-05,2]
[353235821,1739697042334,-500.0,8.778e-05,2]
[353235822,1739697042345,-666.74,8.778e-05,2]
[353235823,1739697042354,-500.0,8.778e-05,2]
[353235824,1739697042364,-500.0,8.778e-05,2]
[353235825,1739697042373,-500.0,8.778e-05,2]
[353235826,1739697042383,-500.0,8.778e-05,2]
[353235827,1739697042392,-500.0,8.778e-05,2]
[353235828,1739697042402,-500.0,8.778e-05,2]
[353235829,1739697042412,-741.67,8.778e-05,2]
[353235830,1739697042421,-500.0,8.778e-05,2]
[353235831,1739697042431,-500.0,8.778e-05,2]
[353235832,1739697042441,-500.0,8.778e-05,2]
[353235833,1739697042450,-431.92353561,8.778e-05,2]
[353235834,1739697042460,-500.0,8.778e-05,2]
[353235835,1739697042470,-460.03485302,8.778e-05,2]
[353235836,1739697042487,-39.96514698,8.778e-05,2]
[353235837,1739697042496,-500.0,8.778e-05,2]
[353235838,1739697042506,-305.818218,8.778e-05,2]
[353235868,1739697043153,-194.181782,8.778e-05,2]
[353235869,1739697043164,-500.0,8.778e-05,2]
[353235870,1739697043174,-500.0,8.778e-05,2]
[353235871,1739697043183,-483.10297384,8.778e-05,2]
[353235874,1739697043336,-16.89702616,8.778e-05,2]
[353235876,1739697043345,-49.53711102,8.778e-05,2]
[353235914,1739697486819,500.0,0.00018904,120]
[353235915,1739697487096,500.0,0.00018904,120]
[353235916,1739697487372,331.13522163,0.00018904,120]
[353235944,1739698154108,-369.97014645,7.603e-05,2]
[353235945,1739698154129,-120.02985355,7.758e-05,2]
[353235998,1739698232183,-37.87980845,7.758e-05,2]
[353236000,1739698232193,-157.909662,7.796e-05,2]
[353236002,1739698232202,-374.17135838,8.22e-05,2]
[353236005,1739698232214,-825.82864162,8.22e-05,2]
[353236007,1739698232223,-161.611634,8.669e-05,2]
[353236009,1739698232232,-153.88742,8.709e-05,2]
[353236011,1739698232242,-215.9483191,8.71e-05,2]
[353236013,1739698232251,-353.219179,8.71e-05,2]
[353236015,1739698232260,-153.0,8.71e-05,2]
[353236017,1739698232269,-215.9483191,8.71e-05,2]
[353236019,1739698232278,-215.9483191,8.71e-05,2]
[353236021,1739698232287,-217.5962352,8.71e-05,2]
[353236023,1739698232296,-153.0,8.71e-05,2]
[353236025,1739698232305,-215.9483191,8.71e-05,2]
[353236027,1739698232314,-215.9483191,8.71e-05,2]
[353236029,1739698232323,-153.0,8.71e-05,2]
[353236031,1739698232332,-393.0674434,8.71e-05,2]
[353236034,1739698232342,-153.0,8.71e-05,2]
[353236037,1739698232351,-153.0,8.71e-05,2]
[353236039,1739698232360,-412.1409438,8.71e-05,2]
[353236041,1739698232369,-154.6992002,8.71e-05,2]
[353236043,1739698232378,-154.6992002,8.71e-05,2]
[353236045,1739698232387,-307.7299507,8.71e-05,2]
[353236047,1739698232396,-154.2544952,8.71e-05,2]
[353236049,1739698232405,-153.0,8.71e-05,2]
[353236051,1739698232414,-300.0,8.71e-05,2]
[353236053,1739698232424,-500.0,8.773e-05,2]
[353236055,1739698232433,-500.0,8.773e-05,2]
[353236057,1739698232443,-500.0,8.773e-05,2]
[353236059,1739698232451,-500.0,8.773e-05,2]
[353236065,1739698232560,-2178.31,8.773e-05,2]
[353236066,1739698232571,-500.0,8.773e-05,2]
[353236067,1739698232580,-500.0,8.773e-05,2]
[353236068,1739698232589,-500.0,8.773e-05,2]
[353236069,1739698232598,-500.0,8.773e-05,2]
[353236070,1739698232607,-500.0,8.774e-05,2]
[353236071,1739698232616,-2890.57,8.774e-05,2]
[353236072,1739698232624,-500.0,8.774e-05,2]
[353236073,1739698232633,-951.21,8.774e-05,2]
[353236074,1739698232642,-500.0,8.774e-05,2]
[353236075,1739698232652,-500.0,8.774e-05,2]
[353236076,1739698232661,-500.0,8.774e-05,2]
[353236078,1739698232671,-500.0,8.774e-05,2]
[353236079,1739698232680,-2202.99,8.774e-05,2]
[353236081,1739698232690,-500.0,8.774e-05,2]
[353236083,1739698232699,-1181.71,8.774e-05,2]
[353236085,1739698232708,-952.97,8.774e-05,2]
[353236087,1739698232718,-6180.84,8.774e-05,2]
[353236089,1739698232727,-500.0,8.774e-05,2]
[353236091,1739698232737,-500.0,8.774e-05,2]
[353236093,1739698232746,-500.0,8.774e-05,2]
[353236095,1739698232755,-1308.08,8.774e-05,2]
[353236097,1739698232765,-696.49,8.774e-05,2]
[353236099,1739698232774,-503.01331783,8.774e-05,2]
[353236101,1739698232783,-2325.76,8.774e-05,2]
[353236103,1739698232793,-2009.56,8.774e-05,2]
[353236105,1739698232803,-500.0,8.774e-05,2]
[353236107,1739698232812,-4077.74,8.774e-05,2]
[353236109,1739698232821,-644.49,8.774e-05,2]
[353236111,1739698232831,-500.0,8.774e-05,2]
[353236113,1739698232840,-500.0,8.774e-05,2]
[353236115,1739698232849,-500.0,8.774e-05,2]
[353236117,1739698232859,-500.0,8.774e-05,2]
[353236119,1739698232868,-500.0,8.774e-05,2]
[353236121,1739698232878,-500.0,8.774e-05,2]
[353236123,1739698232888,-620.0,8.774e-05,2]
[353236125,1739698232897,-500.0,8.774e-05,2]
[353236127,1739698232906,-500.0,8.774e-05,2]
[353236129,1739698232916,-500.0,8.774e-05,2]
[353236131,1739698232929,-500.0,8.774e-05,2]
[353236133,1739698232938,-414.01440097,8.774e-05,2]
[353236135,1739698232948,-500.0,8.774e-05,2]
[353236137,1739698232958,-500.0,8.774e-05,2]
[353236140,1739698232969,-500.0,8.774e-05,2]
[353236142,1739698232979,-500.0,8.774e-05,2]
[353236143,1739698232988,-500.0,8.774e-05,2]
[353236144,1739698232999,-500.0,8.774e-05,2]
[353236145,1739698233009,-500.0,8.774e-05,2]
[353236146,1739698233018,-500.0,8.774e-05,2]
[353236148,1739698233028,-500.0,8.774e-05,2]
[353236150,1739698233037,-500.0,8.774e-05,2]
[353236152,1739698233047,-500.0,8.774e-05,2]
[353236154,1739698233056,-500.0,8.774e-05,2]
[353236155,1739698233066,-500.0,8.774e-05,2]
[353236156,1739698233076,-500.0,8.774e-05,2]
[353236157,1739698233085,-500.0,8.774e-05,2]
[353236158,1739698233095,-500.0,8.774e-05,2]
[353236160,1739698233105,-500.0,8.774e-05,2]
[353236162,1739698233114,-500.0,8.774e-05,2]
[353236164,1739698233124,-500.0,8.774e-05,2]
[353236165,1739698233133,-500.0,8.774e-05,2]
[353236166,1739698233144,-500.0,8.774e-05,2]
[353236168,1739698233154,-500.0,8.774e-05,2]
[353236170,1739698233163,-500.0,8.774e-05,2]
[353236172,1739698233173,-500.0,8.774e-05,2]
[353236173,1739698233183,-500.0,8.774e-05,2]
[353236174,1739698233193,-500.0,8.774e-05,2]
[353236175,1739698233202,-500.0,8.774e-05,2]
[353236176,1739698233211,-500.0,8.774e-05,2]
[353236177,1739698233220,-500.0,8.774e-05,2]
[353236178,1739698233229,-500.0,8.774e-05,2]
[353236179,1739698233238,-500.0,8.774e-05,2]
[353236180,1739698233248,-500.0,8.774e-05,2]
[353236181,1739698233258,-500.0,8.774e-05,2]
[353236182,1739698233267,-500.0,8.774e-05,2]
[353236183,1739698233277,-500.0,8.774e-05,2]
[353236184,1739698233286,-500.0,8.774e-05,2]
[353236185,1739698233295,-500.0,8.774e-05,2]
[353236186,1739698233305,-500.0,8.774e-05,2]
[353236187,1739698233315,-500.0,8.774e-05,2]
[353236188,1739698233324,-500.0,8.774e-05,2]
[353236189,1739698233334,-500.0,8.774e-05,2]
[353236190,1739698233343,-500.0,8.774e-05,2]
[353236191,1739698233353,-500.0,8.774e-05,2]
[353236192,1739698233362,-500.0,8.774e-05,2]
[353236193,1739698233372,-466.17775232,8.774e-05,2]
[353236194,1739698233382,-500.0,8.774e-05,2]
[353236195,1739698233392,-500.0,8.774e-05,2]
[353236196,1739698233401,-500.0,8.774e-05,2]
[353236197,1739698233411,-500.0,8.774e-05,2]
[353236198,1739698233420,-500.0,8.774e-05,2]
[353236199,1739698233430,-500.0,8.774e-05,2]
[353236200,1739698233439,-500.0,8.774e-05,2]
[353236201,1739698233449,-250.0,8.774e-05,2]
[353236202,1739698233459,-500.0,8.775e-05,2]
[353236203,1739698233468,-502.90624184,8.775e-05,2]
[353236204,1739698233478,-509.06823452,8.775e-05,2]
[353236205,1739698233487,-500.0,8.775e-05,2]
[353236206,1739698233497,-500.22,8.775e-05,2]
[353236207,1739698233506,-250.56058529,8.775e-05,2]
[353236208,1739698233520,-249.43941471,8.775e-05,2]
[353236209,1739698233530,-50.56058529,8.775e-05,2]
[353236223,1739698240193,-766.49,8.774e-05,2]
[353236224,1739698240206,-233.51,8.775e-05,2]
[353236225,1739698240305,-215.92941471,8.775e-05,2]
[353236226,1739698240320,-500.0,8.775e-05,2]
[353236227,1739698240332,-476.39169108,8.775e-05,2]
[353236228,1739698240346,-500.0,8.775e-05,2]
[353236229,1739698240358,-500.0,8.775e-05,2]
[353236230,1739698240371,-500.0,8.775e-05,2]
[353236231,1739698240385,-154.87354881,8.775e-05,2]
[353236232,1739698240398,-500.0,8.775e-05,2]
[353236233,1739698240411,-500.0,8.775e-05,2]
[353236234,1739698240423,-500.0,8.775e-05,2]
[353236235,1739698240433,-500.0,8.775e-05,2]
[353236236,1739698240442,-500.0,8.775e-05,2]
[353236237,1739698240591,-500.0,8.775e-05,2]
[353236238,1739698240600,-500.0,8.775e-05,2]
[353236239,1739698240609,-500.0,8.775e-05,2]
[353236240,1739698240618,-500.0,8.775e-05,2]
[353236241,1739698240627,-503.63042688,8.775e-05,2]
[353236242,1739698240636,-417.54266778,8.775e-05,2]
[353236243,1739698240646,-500.0,8.775e-05,2]
[353236244,1739698240655,-500.0,8.775e-05,2]
[353236245,1739698240665,-500.0,8.775e-05,2]
[353236246,1739698240674,-500.0,8.775e-05,2]
[353236247,1739698240683,-500.0,8.775e-05,2]
[353236248,1739698240693,-500.0,8.775e-05,2]
[353236249,1739698240702,-500.0,8.775e-05,2]
[353236250,1739698240712,-582.29032648,8.775e-05,2]
[353236251,1739698240721,-500.0,8.775e-05,2]
[353236252,1739698240730,-500.0,8.775e-05,2]
[353236253,1739698240739,-500.0,8.775e-05,2]
[353236254,1739698240749,-500.0,8.775e-05,2]
[353236255,1739698240759,-296.75710932,8.775e-05,2]
[353236256,1739698240768,-500.0,8.775e-05,2]
[353236257,1739698240778,-500.0,8.775e-05,2]
[353236258,1739698240788,-764.12,8.775e-05,2]
[353236259,1739698240798,-500.0,8.775e-05,2]
[353236260,1739698240808,-500.0,8.775e-05,2]
[353236261,1739698240817,-500.0,8.775e-05,2]
[353236262,1739698240827,-500.0,8.775e-05,2]
[353236263,1739698240837,-500.0,8.775e-05,2]
[353236264,1739698240847,-500.0,8.775e-05,2]
[353236265,1739698240856,-500.0,8.775e-05,2]
[353236266,1739698240866,-500.0,8.775e-05,2]
[353236267,1739698240875,-500.0,8.775e-05,2]
[353236268,1739698240885,-500.0,8.775e-05,2]
[353236269,1739698240894,-500.0,8.775e-05,2]
[353236270,1739698240903,-549.65,8.775e-05,2]
[353236271,1739698240913,-592.4,8.775e-05,2]
[353236272,1739698240926,-500.0,8.775e-05,2]
[353236273,1739698240937,-500.0,8.775e-05,2]
[353236274,1739698240946,-500.0,8.775e-05,2]
[353236275,1739698240956,-500.0,8.775e-05,2]
[353236276,1739698240966,-500.0,8.775e-05,2]
[353236277,1739698240976,-500.0,8.775e-05,2]
[353236278,1739698240986,-500.0,8.775e-05,2]
[353236279,1739698240996,-867.71,8.775e-05,2]
[353236280,1739698241006,-500.0,8.775e-05,2]
[353236281,1739698241016,-500.0,8.775e-05,2]
[353236282,1739698241025,-503.05074261,8.775e-05,2]
[353236283,1739698241035,-593.78,8.775e-05,2]
[353236284,1739698241045,-500.0,8.775e-05,2]
[353236285,1739698241055,-500.0,8.775e-05,2]
[353236286,1739698241065,-500.0,8.775e-05,2]
[353236287,1739698241075,-500.0,8.775e-05,2]
[353236288,1739698241084,-500.0,8.775e-05,2]
[353236289,1739698241094,-500.0,8.775e-05,2]
[353236290,1739698241104,-500.0,8.775e-05,2]
[353236291,1739698241113,-500.0,8.775e-05,2]
[353236292,1739698241123,-233.99594189,8.775e-05,2]
[353236293,1739698241132,-500.0,8.775e-05,2]
[353236294,1739698241142,-500.0,8.775e-05,2]
[353236295,1739698241152,-501.83155023,8.775e-05,2]
[353236296,1739698241162,-500.0,8.775e-05,2]
[353236297,1739698241171,-616.1,8.775e-05,2]
[353236298,1739698241181,-500.0,8.775e-05,2]
[353236299,1739698241191,-500.0,8.775e-05,2]
[353236300,1739698241201,-500.0,8.775e-05,2]
[353236301,1739698241211,-500.0,8.775e-05,2]
[353236302,1739698241221,-500.0,8.775e-05,2]
[353236303,1739698241231,-503.03256543,8.775e-05,2]
[353236304,1739698241241,-305.45712954,8.775e-05,2]
[353236305,1739698241251,-714.67,8.775e-05,2]
[353236306,1739698241261,-603.36,8.775e-05,2]
[353236307,1739698241271,-500.0,8.775e-05,2]
[353236308,1739698241280,-500.0,8.775e-05,2]
[353236309,1739698241290,-500.0,8.775e-05,2]
[353236310,1739698241299,-501.13971128,8.775e-05,2]
[353236311,1739698241310,-905.65,8.775e-05,2]
[353236312,1739698241319,-500.0,8.775e-05,2]
[353236313,1739698241329,-500.0,8.775e-05,2]
[353236314,1739698241338,-500.0,8.775e-05,2]
[353236315,1739698241348,-869.15,8.775e-05,2]
[353236316,1739698241357,-535.95160388,8.775e-05,2]
[353236317,1739698241366,-500.0,8.775e-05,2]
[353236318,1739698241376,-855.71,8.775e-05,2]
[353236319,1739698241386,-500.0,8.775e-05,2]
[353236320,1739698241395,-500.0,8.775e-05,2]
[353236321,1739698241405,-500.0,8.775e-05,2]
[353236322,1739698241414,-502.21151534,8.775e-05,2]
[353236323,1739698241424,-500.0,8.775e-05,2]
[353236324,1739698241433,-500.0,8.775e-05,2]
[353236325,1739698241442,-500.0,8.775e-05,2]
[353236326,1739698241452,-500.0,8.775e-05,2]
[353236327,1739698241463,-500.0,8.775e-05,2]
[353236328,1739698241473,-500.0,8.775e-05,2]
[353236329,1739698241481,-500.0,8.775e-05,2]
[353236330,1739698241490,-500.0,8.775e-05,2]
[353236331,1739698241500,-500.0,8.775e-05,2]
[353236332,1739698241509,-500.0,8.775e-05,2]
[353236333,1739698241519,-500.0,8.775e-05,2]
[353236334,1739698241528,-500.0,8.775e-05,2]
[353236335,1739698241537,-500.0,8.775e-05,2]
[353236336,1739698241547,-500.0,8.775e-05,2]
[353236337,1739698241557,-500.0,8.775e-05,2]
[353236338,1739698241567,-500.0,8.775e-05,2]
[353236339,1739698241577,-707.16,8.775e-05,2]
[353236340,1739698241587,-500.0,8.775e-05,2]
[353236341,1739698241597,-500.0,8.775e-05,2]
[353236342,1739698241606,-251.53663515,8.775e-05,2]
[353236343,1739698241616,-220.66231662,8.775e-05,2]
[353236344,1739698241625,-505.58415609,8.775e-05,2]
[353236345,1739698241635,-500.0,8.775e-05,2]
[353236346,1739698241644,-596.87,8.775e-05,2]
[353236347,1739698241654,-625.1,8.775e-05,2]
[353236348,1739698241663,-602.01,8.775e-05,2]
[353236349,1739698241673,-224.21796565,8.775e-05,2]
[353236350,1739698241684,-500.0,8.775e-05,2]
[353236351,1739698241694,-500.0,8.775e-05,2]
[353236352,1739698241703,-500.0,8.775e-05,2]
[353236353,1739698241713,-505.19998267,8.775e-05,2]
[353236354,1739698241722,-500.0,8.775e-05,2]
[353236355,1739698241732,-500.0,8.775e-05,2]
[353236356,1739698241741,-500.0,8.775e-05,2]
[353236357,1739698241751,-500.0,8.775e-05,2]
[353236358,1739698241761,-500.0,8.775e-05,2]
[353236359,1739698241771,-500.0,8.775e-05,2]
[353236360,1739698241780,-500.0,8.775e-05,2]
[353236361,1739698241790,-500.0,8.775e-05,2]
[353236362,1739698241800,-577.24,8.775e-05,2]
[353236363,1739698241809,-500.0,8.775e-05,2]
[353236364,1739698241819,-500.0,8.775e-05,2]
[353236365,1739698241828,-503.98600084,8.775e-05,2]
[353236366,1739698241838,-500.0,8.775e-05,2]
[353236367,1739698241847,-500.0,8.775e-05,2]
[353236368,1739698241857,-500.0,8.775e-05,2]
[353236369,1739698241866,-500.0,8.775e-05,2]
[353236370,1739698241875,-500.0,8.775e-05,2]
[353236371,1739698241885,-500.0,8.775e-05,2]
[353236372,1739698241894,-500.0,8.775e-05,2]
[353236373,1739698241903,-502.765775,8.775e-05,2]
[353236374,1739698241914,-500.0,8.775e-05,2]
[353236375,1739698241927,-672.21,8.775e-05,2]
[353236376,1739698241936,-500.0,8.775e-05,2]
[353236377,1739698241946,-538.86176155,8.775e-05,2]
[353236378,1739698241956,-2370.59,8.775e-05,2]
[353236379,1739698241967,-500.0,8.775e-05,2]
[353236380,1739698241976,-395.75672126,8.775e-05,2]
[353236381,1739698241985,-791.28,8.775e-05,2]
[353236382,1739698241997,-500.0,8.775e-05,2]
[353236383,1739698242006,-374.04744171,8.775e-05,2]
[353236384,1739698242016,-372.89569665,8.775e-05,2]
[353236385,1739698242025,-500.0,8.775e-05,2]
[353236386,1739698242034,-500.0,8.775e-05,2]
[353236387,1739698242044,-501.00715208,8.775e-05,2]
[353236388,1739698242053,-1339.73,8.775e-05,2]
[353236389,1739698242062,-500.0,8.775e-05,2]
[353236390,1739698242072,-500.0,8.775e-05,2]
[353236391,1739698242082,-846.64,8.775e-05,2]
[353236392,1739698242092,-500.0,8.775e-05,2]
[353236393,1739698242101,-574.1,8.775e-05,2]
[353236394,1739698242111,-1058.34,8.775e-05,2]
[353236395,1739698242120,-500.0,8.775e-05,2]
[353236396,1739698242130,-500.0,8.775e-05,2]
[353236397,1739698242139,-500.0,8.775e-05,2]
[353236398,1739698242148,-500.0,8.775e-05,2]
[353236399,1739698242160,-500.0,8.775e-05,2]
[353236400,1739698242181,-500.0,8.775e-05,2]
[353236401,1739698242191,-14723.39,8.775e-05,2]
[353236402,1739698242200,-500.0,8.775e-05,2]
[353236403,1739698242210,-500.0,8.775e-05,2]
[353236404,1739698242219,-500.0,8.775e-05,2]
[353236405,1739698242228,-500.0,8.775e-05,2]
[353236406,1739698242237,-500.0,8.775e-05,2]
[353236407,1739698242246,-500.0,8.775e-05,2]
[353236408,1739698242256,-1018.52,8.775e-05,2]
[353236409,1739698242265,-500.0,8.775e-05,2]
[353236410,1739698242274,-500.0,8.775e-05,2]
[353236411,1739698242284,-503.88806651,8.775e-05,2]
[353236412,1739698242293,-643.17,8.775e-05,2]
[353236413,1739698242303,-624.4,8.775e-05,2]
[353236414,1739698242313,-934.12,8.775e-05,2]
[353236415,1739698242323,-1220.64,8.775e-05,2]
[353236416,1739698242334,-500.0,8.775e-05,2]
[353236417,1739698242344,-1856.17,8.775e-05,2]
[353236418,1739698242355,-638.96,8.775e-05,2]
[353236419,1739698242364,-500.0,8.775e-05,2]
[353236420,1739698242375,-1180.95,8.775e-05,2]
[353236421,1739698242386,-500.0,8.775e-05,2]
[353236422,1739698242397,-500.0,8.775e-05,2]
[353236423,1739698242406,-499.51212329,8.775e-05,2]
[353236424,1739698242415,-500.0,8.775e-05,2]
[353236425,1739698242424,-512.7187502,8.775e-05,2]
[353236426,1739698242434,-598.5,8.775e-05,2]
[353236427,1739698242445,-500.0,8.775e-05,2]
[353236428,1739698242455,-500.0,8.775e-05,2]
[353236429,1739698242464,-500.0,8.775e-05,2]
[353236430,1739698242473,-500.0,8.775e-05,2]
[353236431,1739698242482,-543.65,8.775e-05,2]
[353236432,1739698242491,-502.65189866,8.775e-05,2]
[353236433,1739698242501,-500.0,8.775e-05,2]
[353236434,1739698242510,-500.0,8.775e-05,2]
[353236435,1739698242519,-300.0,8.775e-05,2]
[353236436,1739698242528,-500.0,8.775e-05,2]
[353236437,1739698242537,-500.0,8.775e-05,2]
[353236438,1739698242547,-500.0,8.775e-05,2]
[353236439,1739698242556,-500.0,8.775e-05,2]
[353236440,1739698242565,-500.0,8.775e-05,2]
[353236441,1739698242574,-500.0,8.775e-05,2]
[353236446,1739698242676,-500.0,8.775e-05,2]
[353236449,1739698242687,-500.0,8.775e-05,2]
[353236450,1739698242696,-500.0,8.775e-05,2]
[353236451,1739698242706,-744.72,8.775e-05,2]
[353236452,1739698242715,-500.0,8.775e-05,2]
[353236454,1739698242725,-500.0,8.775e-05,2]
[353236456,1739698242734,-500.0,8.775e-05,2]
[353236458,1739698242744,-710.76,8.775e-05,2]
[353236459,1739698242753,-500.0,8.775e-05,2]
[353236460,1739698242762,-617.38,8.775e-05,2]
[353236461,1739698242772,-1198.27,8.775e-05,2]
[353236462,1739698242781,-500.0,8.775e-05,2]
[353236463,1739698242790,-500.0,8.775e-05,2]
[353236464,1739698242799,-500.0,8.775e-05,2]
[353236465,1739698242808,-500.0,8.775e-05,2]
[353236466,1739698242817,-691.27,8.775e-05,2]
[353236468,1739698242826,-1028.64,8.775e-05,2]
[353236469,1739698242836,-500.0,8.775e-05,2]
[353236470,1739698242845,-500.0,8.775e-05,2]
[353236471,1739698242853,-500.0,8.775e-05,2]
[353236472,1739698242862,-240.91052822,8.775e-05,2]
[353236473,1739698242871,-500.0,8.775e-05,2]
[353236474,1739698242880,-500.0,8.775e-05,2]
[353236475,1739698242890,-475.78603396,8.775e-05,2]
[353236476,1739698242900,-500.0,8.775e-05,2]
[353236477,1739698242910,-500.0,8.775e-05,2]
[353236478,1739698242920,-500.0,8.775e-05,2]
[353236479,1739698242932,-500.0,8.775e-05,2]
[353236480,1739698242941,-3003.78,8.775e-05,2]
[353236481,1739698242950,-500.0,8.775e-05,2]
[353236482,1739698242959,-500.0,8.775e-05,2]
[353236483,1739698242969,-640.69,8.775e-05,2]
[353236484,1739698242978,-500.0,8.775e-05,2]
[353236485,1739698242987,-500.0,8.775e-05,2]
[353236486,1739698242996,-500.0,8.775e-05,2]
[353236487,1739698243005,-680.06,8.775e-05,2]
[353236489,1739698243015,-500.0,8.775e-05,2]
[353236492,1739698243024,-500.0,8.775e-05,2]
[353236494,1739698243033,-500.0,8.775e-05,2]
[353236495,1739698243042,-503.86326658,8.775e-05,2]
[353236496,1739698243052,-500.0,8.775e-05,2]
[353236497,1739698243061,-500.0,8.775e-05,2]
[353236498,1739698243071,-14281.85,8.775e-05,2]
[353236499,1739698243080,-500.0,8.775e-05,2]
[353236500,1739698243090,-501.66923596,8.775e-05,2]
[353236501,1739698243099,-500.0,8.775e-05,2]
[353236502,1739698243108,-504.0199234,8.775e-05,2]
[353236503,1739698243118,-500.0,8.775e-05,2]
[353236504,1739698243127,-953.9,8.775e-05,2]
[353236505,1739698243137,-500.0,8.775e-05,2]
[353236506,1739698243146,-527.62,8.775e-05,2]
[353236507,1739698243156,-1079.72,8.775e-05,2]
[353236508,1739698243165,-774.91,8.775e-05,2]
[353236510,1739698243174,-500.0,8.775e-05,2]
[353236511,1739698243183,-866.62,8.775e-05,2]
[353236512,1739698243193,-500.0,8.775e-05,2]
[353236513,1739698243202,-500.0,8.775e-05,2]
[353236514,1739698243214,-500.0,8.775e-05,2]
[353236515,1739698243224,-555.47870052,8.775e-05,2]
[353236516,1739698243233,-500.0,8.775e-05,2]
[353236517,1739698243243,-31836.51,8.775e-05,2]
[353236518,1739698243252,-500.0,8.775e-05,2]
[353236519,1739698243262,-500.0,8.775e-05,2]
[353236520,1739698243271,-567.44,8.775e-05,2]
[353236521,1739698243281,-500.0,8.775e-05,2]
[353236522,1739698243291,-182.44391418,8.775e-05,2]
[353236523,1739698243300,-665.81,8.775e-05,2]
[353236524,1739698243310,-475.22566588,8.775e-05,2]
[353236525,1739698243320,-500.0,8.775e-05,2]
[353236526,1739698243329,-500.0,8.775e-05,2]
[353236527,1739698243339,-1753.22,8.775e-05,2]
[353236528,1739698243348,-500.0,8.776e-05,2]
[353236529,1739698243358,-500.0,8.776e-05,2]
[353236530,1739698243368,-593.63,8.776e-05,2]
[353236531,1739698243377,-500.0,8.776e-05,2]
[353236532,1739698243387,-500.0,8.776e-05,2]
[353236533,1739698243396,-2119.19,8.776e-05,2]
[353236534,1739698243405,-500.0,8.776e-05,2]
[353236535,1739698243415,-2220.97,8.776e-05,2]
[353236536,1739698243424,-511.65,8.776e-05,2]
[353236537,1739698243436,-500.0,8.776e-05,2]
[353236538,1739698243445,-500.0,8.776e-05,2]
[353236539,1739698243454,-500.0,8.776e-05,2]
[353236541,1739698243463,-500.0,8.776e-05,2]
[353236543,1739698243473,-500.0,8.776e-05,2]
[353236545,1739698243483,-2170.46,8.776e-05,2]
[353236547,1739698243493,-500.0,8.776e-05,2]
[353236549,1739698243503,-269.43353608,8.776e-05,2]
[353236552,1739698243513,-500.0,8.776e-05,2]
[353236554,1739698243523,-620.51,8.776e-05,2]
[353236556,1739698243532,-615.06,8.776e-05,2]
[353236558,1739698243542,-502.19880338,8.776e-05,2]
[353236560,1739698243551,-500.0,8.776e-05,2]
[353236562,1739698243560,-500.0,8.776e-05,2]
[353236564,1739698243570,-500.0,8.776e-05,2]
[353236566,1739698243579,-727.86,8.776e-05,2]
[353236568,1739698243588,-500.0,8.776e-05,2]
[353236570,1739698243598,-591.0,8.776e-05,2]
[353236572,1739698243607,-450.20611171,8.776e-05,2]
[353236574,1739698243617,-500.0,8.777e-05,2]
[353236576,1739698243626,-410.89991715,8.777e-05,2]
[353236578,1739698243635,-187.629942,8.777e-05,2]
[353236580,1739698243644,-500.0,8.778e-05,2]
[353236582,1739698243654,-501.14956109,8.778e-05,2]
[353236584,1739698243664,-500.0,8.778e-05,2]
[353236586,1739698243673,-500.0,8.778e-05,2]
[353236587,1739698243684,-500.0,8.778e-05,2]
[353236590,1739698243693,-500.0,8.778e-05,2]
[353236592,1739698243703,-500.0,8.778e-05,2]
[353236593,1739698243712,-500.0,8.778e-05,2]
[353236594,1739698243722,-500.0,8.778e-05,2]